bitfinex/quotes_SOLUSD_20250904
["timestamp","ask_amount","ask_price","bid_price","bid_amount"]
[1757011824594,0.03,203.73,203.72,94.65840477]
[1757011824802,0.03,203.73,203.72,95.14927459]
[1757011825576,0.03,203.73,203.72,97.11656834]
[1757011826692,0.03,203.73,203.72,93.97840477]
[1757011827193,0.03,203.73,203.72,94.65840477]
[1757011829498,0.03,203.73,203.72,55.51840477]
[1757011829681,0.65,203.73,203.72,13.59559401]
[1757011830287,11.66411255,203.73,203.72,13.59559401]
[1757011830999,0.65,203.73,203.72,13.59559401]
[1757011831505,11.66411255,203.73,203.72,13.59559401]
[1757011832102,0.03,203.73,203.71,13.59559401]
[1757011832400,0.03,203.73,203.72,30.19840477]
[1757011832607,0.03,203.73,203.72,18.50429222]
[1757011833313,0.03,203.73,203.72,13.59559401]
[1757011834505,0.03,203.73,203.72,18.50429222]
[1757011835004,0.03,203.73,203.72,25.80363195]
[1757011835210,0.03,203.73,203.72,19.18429222]
[1757011835386,0.03,203.73,203.72,18.50429222]
[1757011836809,0.03,203.73,203.72,25.80363195]
[1757011836989,0.03,203.73,203.72,26.48363195]
[1757011837184,0.03,203.73,203.72,18.50429222]
[1757011840119,0.03,203.73,203.72,22.10342302]
[1757011840412,0.03,203.73,203.72,13.59559401]
[1757011840988,3.5691308,203.73,203.72,13.59559401]
[1757011841204,2.9491308,203.73,203.72,13.59559401]
[1757011842101,3.5691308,203.73,203.71,13.59559401]
[1757011842504,0.03,203.73,203.71,14.27559401]
[1757011842808,0.03,203.73,203.71,13.59559401]
[1757011843022,0.03,203.73,203.71,18.50446192]
[1757011844715,0.03,203.73,203.72,0.68]
[1757011844899,0.03,203.73,203.72,17.19472481]
[1757011845098,0.03,203.73,203.72,22.10342302]
[1757011846230,0.03,203.73,203.72,61.05429284]
[1757011846519,0.03,203.73,203.72,58.13516204]
[1757011846823,0.03,203.73,203.72,61.05429284]
[1757011847721,0.03,203.73,203.72,60.56342302]
[1757011848308,0.03,203.73,203.72,57.64429222]
[1757011848510,0.03,203.73,203.72,19.18429222]
[1757011848722,0.03,203.73,203.72,19.19429222]
[1757011849023,0.03,203.73,203.72,18.50429222]
[1757011850000,0.03,203.73,203.72,19.19429222]
[1757011851613,0.03,203.73,203.72,18.50429222]
[1757011852307,0.03,203.73,203.72,19.19429222]
[1757011852503,0.03,203.73,203.72,18.50429222]
[1757011856299,0.03,203.73,203.72,19.19429222]
[1757011858017,0.03,203.73,203.72,22.11342302]
[1757011859012,0.03,203.73,203.72,19.19429222]
[1757011859732,0.03,203.73,203.72,22.11342302]
[1757011863019,0.03,203.73,203.72,22.60429284]
[1757011863529,0.03,203.73,203.72,24.57158658]
[1757011863909,0.03,203.75,203.73,13.59559401]
[1757011864113,0.03,203.75,203.74,54.95472481]
[1757011864413,0.03,203.75,203.74,55.64472481]
[1757011864739,0.03,203.75,203.74,62.5202349]
[1757011865047,0.03,203.75,203.74,20.4711041]
[1757011865248,0.03,203.75,203.74,18.50381036]
[1757011865926,0.03,203.75,203.74,13.59559401]
[1757011867005,0.03,203.75,203.74,18.50381036]
[1757011867207,0.03,203.75,203.74,21.42294116]
[1757011867414,0.03,203.75,203.74,22.11294116]
[1757011867626,0.03,203.75,203.74,19.19381036]
[1757011867832,0.03,203.75,203.74,21.42294116]
[1757011869346,0.03,203.75,203.74,22.11294116]
[1757011872231,0.03,203.75,203.74,19.19381036]
[1757011872422,0.03,203.75,203.74,22.11294116]
[1757011873741,0.03,203.75,203.74,21.42294116]
[1757011874036,0.03,203.75,203.74,60.53294116]
[1757011874724,0.03,203.75,203.74,62.5002349]
[1757011875234,0.03,203.75,203.74,24.0802349]
[1757011877625,0.03,203.75,203.74,23.3902349]
[1757011877833,0.03,203.75,203.74,61.8102349]
[1757011878136,0.03,203.75,203.74,56.90201855]
[1757011878318,0.03,203.75,203.74,15.56288775]
[1757011879139,0.03,203.75,203.74,13.59559401]
[1757011880235,0.65,203.75,203.74,13.59559401]
[1757011880741,0.03,203.75,203.74,13.59559401]
[1757011881814,3.5691308,203.75,203.74,13.59559401]
[1757011882241,3.71129237,203.75,203.72,13.71559401]
[1757011882446,2.9191308,203.73,203.72,13.71559401]
[1757011882754,2.9191308,203.73,203.72,0.12]
[1757011882924,3.5391308,203.73,203.72,0.12]
[1757011883429,2.9191308,203.74,203.72,0.12]
[1757011883619,0.62,203.74,203.72,0.12]
[1757011883820,3.5391308,203.74,203.72,0.12]
[1757011884741,2.9191308,203.73,203.72,0.12]
[1757011887631,3.5391308,203.74,203.72,0.12]
[1757011888638,0.62,203.74,203.72,0.12]
[1757011888833,5.52824352,203.74,203.72,0.12]
[1757011889143,2.9191308,203.74,203.72,0.12]
[1757011890127,0.79216157,203.75,203.72,0.12]
[1757011890128,3.09129237,203.75,203.72,0.12]
[1757011890634,7.99933702,203.75,203.72,0.12]
[1757011891148,5.08020622,203.75,203.72,0.12]
[1757011891347,8.61933702,203.75,203.72,0.12]
[1757011891828,2.9191308,203.74,203.72,0.12]
[1757011892030,3.5391308,203.74,203.72,0.12]
[1757011892238,2.9191308,203.73,203.72,0.12]
[1757011892441,3.68129237,203.73,203.72,0.12]
[1757011892720,8.58974964,203.73,203.72,0.12]
[1757011893551,7.96974964,203.73,203.72,0.12]
[1757011893751,8.58974964,203.73,203.72,0.12]
[1757011894346,3.06129237,203.73,203.72,0.12]
[1757011894536,46.25717873,203.75,203.72,0.12]
[1757011894935,2.9491308,203.75,203.72,0.12]
[1757011895243,3.09129237,203.75,203.72,0.12]
[1757011895560,5.18176201,203.74,203.72,0.12]
[1757011895867,4.56176201,203.73,203.72,0.12]
[1757011896031,5.18176201,203.73,203.72,0.12]
[1757011896231,5.32392358,203.73,203.72,0.12]
[1757011896936,10.23238085,203.73,203.72,0.12]
[1757011898668,10.23238085,203.73,203.7,1e-08]
[1757011898669,0.14216157,203.72,203.7,1e-08]
[1757011898838,73.66568559,203.71,203.7,1e-08]
[1757011899037,74.28568559,203.71,203.7,1e-08]
[1757011899240,26.76216157,203.71,203.7,1e-08]
[1757011899440,69.72392358,203.71,203.7,1e-08]
[1757011900257,74.63286275,203.71,203.7,1e-08]
[1757011900657,79.19462476,203.71,203.7,1e-08]
[1757011902557,74.63286275,203.71,203.7,1e-08]
[1757011907081,79.19462476,203.71,203.7,1e-08]
[1757011907246,79.19462476,203.71,203.69,0.12]
[1757011907247,0.14216157,203.7,203.68,0.12]
[1757011907448,0.14216157,203.68,203.66,0.12]
[1757011907664,43.72392358,203.68,203.66,0.12]
[1757011908043,45.69315435,203.68,203.66,0.12]
[1757011908949,30.70392358,203.67,203.66,0.12]
[1757011909149,64.54216157,203.67,203.66,0.12]
[1757011909349,64.54216157,203.67,203.66,0.8]
[1757011909350,4.56176201,203.67,203.66,0.8]
[1757011909562,42.96176201,203.67,203.66,0.8]
[1757011909766,43.10392358,203.67,203.66,0.12]
[1757011910657,48.01382685,203.67,203.66,0.12]
[1757011914865,9.61382685,203.67,203.66,0.8]
[1757011915071,48.01382685,203.67,203.66,0.8]
[1757011915666,9.61382685,203.67,203.66,0.8]
[1757011915865,48.01382685,203.67,203.66,0.8]
[1757011916568,48.01382685,203.67,203.66,0.12]
[1757011916761,48.01382685,203.67,203.66,0.8]
[1757011917845,48.01382685,203.67,203.66,0.12]
[1757011918657,9.61382685,203.67,203.66,0.12]
[1757011918864,48.01382685,203.67,203.66,0.12]
[1757011919371,43.10392358,203.67,203.66,0.8]
[1757011919886,26.0,203.7,203.66,0.8]
[1757011919887,0.03,203.71,203.66,0.8]
[1757011920172,42.96176201,203.7,203.66,0.8]
[1757011920467,4.56176201,203.69,203.66,0.8]
[1757011920674,38.4,203.68,203.66,0.8]
[1757011921278,38.4,203.69,203.66,10.27183093]
[1757011921464,38.4,203.7,203.68,13.59559401]
[1757011921664,38.4,203.7,203.69,14.27559401]
[1757011922051,0.03,203.71,203.69,14.27559401]
[1757011922261,38.4,203.7,203.69,13.59559401]
[1757011922776,38.4,203.7,203.69,14.27559401]
[1757011925274,42.96176201,203.7,203.69,14.27559401]
[1757011925482,38.4,203.7,203.69,14.27559401]
[1757011925869,42.96176201,203.7,203.69,14.27559401]
[1757011926264,42.96176201,203.7,203.69,13.59559401]
[1757011926466,0.14216157,203.69,203.66,0.12]
[1757011926782,4.70392358,203.67,203.66,0.12]
[1757011926967,9.61382685,203.67,203.66,0.12]
[1757011927779,10.23382685,203.67,203.66,0.12]
[1757011929666,36.23382685,203.67,203.66,0.12]
[1757011930389,73.99382685,203.67,203.66,0.12]
[1757011930759,30.70392358,203.67,203.66,0.12]
[1757011930961,43.08392358,203.67,203.66,0.12]
[1757011931176,4.70392358,203.67,203.66,0.8]
[1757011931357,43.08392358,203.67,203.66,0.8]
[1757011932082,47.99382685,203.67,203.66,0.12]
[1757011933074,0.14216157,203.67,203.66,0.8]
[1757011933377,43.08392358,203.67,203.66,0.8]
[1757011933580,47.99382685,203.67,203.66,0.12]
[1757011936062,48.61382685,203.67,203.66,0.12]
[1757011936276,74.61382685,203.67,203.66,0.12]
[1757011936474,73.99382685,203.67,203.66,0.12]
[1757011937993,74.61382685,203.67,203.66,0.12]
[1757011938284,48.61382685,203.67,203.66,0.12]
[1757011938476,4.70392358,203.66,203.65,0.12]
[1757011938884,36.23406793,203.66,203.65,0.12]
[1757011939587,10.23406793,203.66,203.65,1e-08]
[1757011939790,26.14216157,203.64,203.63,0.12]
[1757011939966,69.08392358,203.64,203.63,0.12]
[1757011940281,69.08392358,203.64,203.6,0.12]
[1757011940282,0.14216157,203.63,203.6,0.12]
[1757011940470,43.08392358,203.62,203.6,0.12]
[1757011940668,69.08392358,203.62,203.6,0.12]
[1757011940868,36.2350325,203.62,203.6,0.12]
[1757011941069,74.6150325,203.62,203.6,0.12]
[1757011942088,53.17679451,203.62,203.6,0.12]
[1757011942702,0.14216157,203.61,203.6,0.12]
[1757011942898,4.91255649,203.56,203.53,0.1]
[1757011943066,4.70392358,203.54,203.53,0.79]
[1757011943267,4.70392358,203.54,203.53,0.1]
[1757011943489,4.70392358,203.54,203.53,0.79]
[1757011943666,43.08392358,203.54,203.53,0.79]
[1757011944294,43.08392358,203.54,203.53,0.1]
[1757011945086,47.99696278,203.54,203.53,0.1]
[1757011945273,48.61696278,203.54,203.53,0.1]
[1757011946091,48.61696278,203.54,203.51,0.1]
[1757011946092,26.14216157,203.52,203.51,0.1]
[1757011946389,69.08392358,203.52,203.51,0.1]
[1757011946770,69.70392358,203.52,203.51,0.1]
[1757011947285,74.61744559,203.52,203.51,0.1]
[1757011947476,73.99744559,203.52,203.51,0.1]
[1757011948793,79.1792076,203.52,203.51,0.1]
[1757011949911,78.5592076,203.52,203.51,0.1]
[1757011950195,35.61744559,203.52,203.51,0.1]
[1757011950395,74.01744559,203.52,203.51,0.1]
[1757011950585,0.14216157,203.52,203.51,0.79]
[1757011950784,43.10392358,203.52,203.51,0.79]
[1757011951175,4.70392358,203.52,203.51,0.79]
[1757011951381,43.10392358,203.52,203.51,0.79]
[1757011951686,4.70392358,203.52,203.51,0.79]
[1757011952198,43.10392358,203.52,203.51,0.79]
[1757011952497,38.4,203.52,203.51,0.79]
[1757011952704,42.96176201,203.52,203.51,0.79]
[1757011952902,43.10392358,203.52,203.51,0.79]
[1757011956502,4.70392358,203.52,203.51,0.79]
[1757011957007,43.10392358,203.52,203.51,0.79]
[1757011957596,41.4683966,203.52,203.51,0.79]
[1757011958106,38.54216157,203.52,203.51,0.79]
[1757011958309,41.4683966,203.52,203.51,0.79]
[1757011958692,38.54216157,203.52,203.51,0.79]
[1757011959086,41.4683966,203.52,203.51,0.79]
[1757011960798,46.38191861,203.52,203.51,0.79]
[1757011961102,46.38191861,203.52,203.51,0.1]
[1757011961302,73.00191861,203.52,203.51,0.1]
[1757011962382,72.38191861,203.52,203.51,0.1]
[1757011962582,34.60191861,203.52,203.51,0.1]
[1757011962807,72.36191861,203.52,203.51,0.1]
[1757011963200,69.43568358,203.52,203.51,0.1]
[1757011963588,72.36191861,203.52,203.51,0.1]
[1757011963789,72.98191861,203.52,203.51,0.1]
[1757011964415,72.36191861,203.52,203.51,0.1]
[1757011965112,72.98191861,203.52,203.51,0.1]
[1757011965299,58.68685873,203.52,203.51,0.1]
[1757011966915,58.68685873,203.52,203.51,1e-08]
[1757011967093,31.05616648,203.5,203.49,0.1]
[1757011967292,84.06734163,203.5,203.49,0.1]
[1757011967505,84.68734163,203.5,203.49,0.1]
[1757011969191,84.68734163,203.5,203.49,1e-08]
[1757011969393,72.36240151,203.5,203.49,1e-08]
[1757011970417,72.36240151,203.5,203.49,0.67000001]
[1757011970615,72.36240151,203.5,203.49,1e-08]
[1757011971030,33.98240151,203.5,203.49,1e-08]
[1757011971318,72.36240151,203.5,203.49,1e-08]
[1757011971710,84.06734163,203.5,203.49,1e-08]
[1757011972821,84.68734163,203.5,203.49,1e-08]
[1757011972995,84.06734163,203.5,203.49,1e-08]
[1757011973701,45.68734163,203.5,203.49,1e-08]
[1757011973915,84.68734163,203.5,203.49,1e-08]
[1757011974221,84.06734163,203.5,203.49,1e-08]
[1757011974996,84.68734163,203.5,203.49,1e-08]
[1757011975512,84.06734163,203.5,203.49,1e-08]
[1757011976097,84.68734163,203.5,203.49,1e-08]
[1757011976621,84.06734163,203.5,203.49,1e-08]
[1757011979015,45.68734163,203.5,203.49,1e-08]
[1757011979221,84.06734163,203.5,203.49,1e-08]
[1757011980205,3.0683966,203.5,203.49,1e-08]
[1757011980411,46.22023994,203.5,203.49,0.67000001]
[1757011980611,72.22023994,203.5,203.49,0.67000001]
[1757011980803,72.36240151,203.5,203.49,0.67000001]
[1757011981001,72.36240151,203.5,203.49,1e-08]
[1757011981403,84.06734163,203.5,203.49,1e-08]
[1757011981613,58.68734163,203.5,203.49,1e-08]
[1757011981903,58.06734163,203.5,203.49,1e-08]
[1757011984324,58.68734163,203.5,203.49,1e-08]
[1757011984504,7.98240151,203.5,203.49,1e-08]
[1757011984707,41.4483966,203.5,203.49,0.67000001]
[1757011985231,38.41,203.5,203.49,0.67000001]
[1757011985706,41.33623503,203.5,203.49,0.67000001]
[1757011986102,41.4783966,203.5,203.49,0.67000001]
[1757011987013,46.39240151,203.5,203.49,0.67000001]
[1757011987221,41.4783966,203.5,203.49,0.67000001]
[1757011988204,46.39240151,203.5,203.49,0.67000001]
[1757011991411,8.01240151,203.5,203.49,0.67000001]
[1757011991610,46.39240151,203.5,203.49,0.67000001]
[1757011992317,43.46616648,203.5,203.49,0.67000001]
[1757011992518,73.01240151,203.5,203.49,1e-08]
[1757011992724,58.71734163,203.5,203.49,1e-08]
[1757011993627,58.71734163,203.5,203.48,1e-08]
[1757011993827,26.0,203.47,203.46,0.12]
[1757011994131,67.4483966,203.47,203.46,0.12]
[1757011995517,29.0683966,203.47,203.46,0.12]
[1757011995709,67.30623503,203.47,203.46,0.79]
[1757011995907,72.22096447,203.47,203.46,0.79]
[1757011996109,0.14216157,203.47,203.46,0.79]
[1757011996424,41.4483966,203.47,203.46,0.79]
[1757011996611,46.36312604,203.47,203.46,0.79]
[1757011997535,46.98312604,203.47,203.46,0.12]
[1757011998518,26.14216157,203.46,203.45,0.1]
[1757011998717,68.0683966,203.46,203.45,0.1]
[1757011999324,67.4483966,203.46,203.45,0.1]
[1757011999527,68.0683966,203.46,203.45,0.1]
[1757011999727,4.08772452,203.49,203.45,0.1]
[1757012000024,29.0683966,203.46,203.45,0.78]
[1757012000227,67.4483966,203.46,203.45,0.1]
[1757012000429,67.30623503,203.46,203.45,0.1]
[1757012000836,29.0683966,203.46,203.45,0.78]
[1757012001042,67.30623503,203.46,203.45,0.78]
[1757012001219,67.4483966,203.46,203.45,0.78]
[1757012003242,72.3633676,203.46,203.45,0.78]
[1757012003741,67.4483966,203.46,203.45,0.78]
[1757012003927,64.52216157,203.46,203.45,0.78]
[1757012004131,67.4483966,203.46,203.45,0.78]
[1757012004342,3.0683966,203.46,203.45,0.78]
[1757012004532,41.4283966,203.46,203.45,0.78]
[1757012004713,3.0683966,203.46,203.45,0.78]
[1757012004919,41.4283966,203.46,203.45,0.78]
[1757012006539,38.50216157,203.46,203.45,0.78]
[1757012007627,0.14216157,203.46,203.45,0.78]
[1757012007828,38.50216157,203.46,203.45,0.78]
[1757012009723,0.14216157,203.46,203.45,5.69521258]
[1757012009934,38.50216157,203.46,203.45,5.69521258]
[1757012010140,38.50216157,203.46,203.45,8.62144761]
[1757012010141,38.36,203.46,203.45,8.62144761]
[1757012010330,38.36,203.46,203.45,22.21704162]
[1757012010528,38.36,203.46,203.45,0.78]
[1757012010746,38.50216157,203.46,203.45,0.78]
[1757012015032,46.3433676,203.46,203.45,0.78]
[1757012015754,46.3433676,203.46,203.45,0.1]
[1757012017546,47.99334408,203.46,203.45,0.1]
[1757012017849,0.03,203.48,203.45,0.78]
[1757012018055,0.03,203.48,203.45,5.35621151]
[1757012018056,38.36,203.47,203.45,5.35621151]
[1757012018258,38.36,203.47,203.46,5.25621151]
[1757012020241,43.07837308,203.47,203.45,0.1]
[1757012020555,4.71837308,203.46,203.45,0.1]
[1757012021759,9.63334408,203.46,203.45,0.1]
[1757012024970,9.63334408,203.46,203.45,0.78]
[1757012024971,0.14216157,203.46,203.45,0.78]
[1757012025151,38.50216157,203.46,203.45,0.78]
[1757012025363,43.41713257,203.46,203.45,0.78]
[1757012025542,38.50216157,203.46,203.45,0.78]
[1757012025736,43.07837308,203.46,203.45,0.78]
[1757012025955,43.07837308,203.46,203.45,0.1]
[1757012026160,38.50216157,203.46,203.45,0.1]
[1757012026463,47.99334408,203.46,203.45,0.1]
[1757012026964,43.07837308,203.46,203.45,0.1]
[1757012027145,38.50216157,203.46,203.45,0.78]
[1757012027656,4.71837308,203.46,203.45,0.78]
[1757012027858,69.07837308,203.46,203.45,0.78]
[1757012028059,64.50216157,203.46,203.45,0.78]
[1757012028469,69.41713257,203.46,203.45,0.1]
[1757012028846,69.41713257,203.46,203.45,0.79]
[1757012030058,73.99334408,203.46,203.45,0.1]
[1757012032365,69.41713257,203.46,203.45,0.1]
[1757012033355,31.05713257,203.46,203.45,0.79]
[1757012033553,69.41713257,203.46,203.45,0.79]
[1757012033958,69.41713257,203.46,203.45,0.1]
[1757012034166,31.05713257,203.46,203.45,0.1]
[1757012034479,64.50216157,203.46,203.45,0.79]
[1757012034992,0.14216157,203.46,203.45,0.79]
[1757012035273,64.50216157,203.46,203.45,0.79]
[1757012035478,69.41713257,203.46,203.45,0.79]
[1757012038072,38.50216157,203.46,203.45,0.79]
[1757012038269,38.53216157,203.46,203.45,0.79]
[1757012038487,48.64334408,203.46,203.45,0.1]
[1757012038655,9.17485709,203.46,203.45,0.1]
[1757012038973,69.42713257,203.46,203.45,0.1]
[1757012039652,31.08713257,203.46,203.45,0.1]
[1757012039974,64.51216157,203.46,203.45,0.79]
[1757012040560,0.03,203.46,203.45,5.36621151]
[1757012040763,0.03,203.46,203.45,23.8770181]
[1757012041188,0.03,203.46,203.45,14.38559401]
[1757012041360,0.03,203.46,203.45,23.8770181]
[1757012043780,0.03,203.46,203.45,18.96180552]
[1757012043955,0.03,203.46,203.45,23.8770181]
[1757012044376,0.03,203.46,203.45,18.96180552]
[1757012046080,0.03,203.46,203.45,14.38559401]
[1757012046382,0.03,203.46,203.45,18.96180552]
[1757012047965,0.03,203.46,203.45,23.8770181]
[1757012050461,0.03,203.46,203.45,24.36853935]
[1757012050868,0.03,203.46,203.45,23.8770181]
[1757012052789,0.03,203.46,203.45,19.30080659]
[1757012052968,0.03,203.46,203.45,23.8770181]
[1757012055390,0.03,203.46,203.45,18.96180552]
[1757012055576,0.03,203.46,203.45,18.27180552]
[1757012056091,0.03,203.46,203.45,18.96180552]
[1757012056684,0.03,203.46,203.45,23.8770181]
[1757012057977,0.03,203.46,203.45,19.30080659]
[1757012058181,0.03,203.46,203.45,23.8770181]
[1757012058993,0.03,203.46,203.45,18.96180552]
[1757012059197,0.03,203.46,203.45,23.1870181]
[1757012059390,0.03,203.46,203.45,0.1]
[1757012060180,0.79216157,203.46,203.45,0.1]
[1757012060382,5.36837308,203.46,203.45,0.1]
[1757012060776,0.03,203.46,203.45,4.67621151]
[1757012062287,0.03,203.46,203.45,0.1]
[1757012063598,5.36837308,203.46,203.45,0.1]
[1757012064817,10.28334408,203.46,203.45,0.1]
[1757012067184,10.28334408,203.46,203.45,1e-08]
[1757012068478,48.64334408,203.46,203.45,1e-08]
[1757012069385,36.28334408,203.46,203.45,1e-08]
[1757012069587,48.64334408,203.46,203.45,1e-08]
[1757012070186,50.6150015,203.46,203.45,1e-08]
[1757012071012,48.64334408,203.46,203.45,1e-08]
[1757012071512,50.6150015,203.46,203.45,1e-08]
[1757012071888,50.6150015,203.46,203.44,1e-08]
[1757012072088,4.71837308,203.45,203.44,1e-08]
[1757012072490,26.14216157,203.43,203.42,1e-08]
[1757012072703,69.11837308,203.43,203.42,1e-08]
[1757012072909,74.65406889,203.43,203.42,1e-08]
[1757012075016,79.2302804,203.43,203.42,1e-08]
[1757012075313,40.8302804,203.43,203.42,1e-08]
[1757012075538,35.49190732,203.43,203.42,1e-08]
[1757012075692,38.38,203.43,203.42,0.66000001]
[1757012075897,42.95621151,203.43,203.42,1e-08]
[1757012076093,74.01406889,203.43,203.42,1e-08]
[1757012076413,73.87190732,203.43,203.42,1e-08]
[1757012076712,74.01406889,203.43,203.42,1e-08]
[1757012077730,72.36770958,203.43,203.42,1e-08]
[1757012078903,72.98770958,203.43,203.42,1e-08]
[1757012079215,46.98770958,203.43,203.42,1e-08]
[1757012079616,46.98770958,203.43,203.34,0.66]
[1757012079617,26.0,203.4,203.34,0.66]
[1757012079920,29.07201377,203.35,203.34,0.66]
[1757012080116,67.53201377,203.35,203.34,0.66]
[1757012080300,0.14216157,203.34,203.32,0.66]
[1757012080618,0.14216157,203.32,203.28,2.9298522]
[1757012080816,0.14216157,203.32,203.26,4.91958103]
[1757012080817,38.46,203.31,203.27,13.59559401]
[1757012081001,38.46,203.31,203.28,3.5898522]
[1757012081202,38.46,203.31,203.29,0.66]
[1757012082318,38.46,203.31,203.29,3.5898522]
[1757012082615,0.14216157,203.32,203.29,0.66]
[1757012082616,38.46,203.3,203.29,0.66]
[1757012082823,38.46,203.3,203.29,3.5898522]
[1757012083235,0.14216157,203.32,203.29,0.66]
[1757012083401,38.44,203.3,203.29,0.66]
[1757012086017,38.44,203.3,203.29,3.5898522]
[1757012086396,38.44,203.3,203.29,0.66]
[1757012086600,38.44,203.3,203.29,3.5898522]
[1757012086601,38.42,203.3,203.29,3.5898522]
[1757012089097,38.42,203.3,203.27,0.67]
[1757012089303,0.14216157,203.29,203.28,0.67]
[1757012089505,0.14216157,203.29,203.26,0.67]
[1757012089729,3.07201377,203.29,203.26,0.67]
[1757012089925,5.06128027,203.29,203.26,0.67]
[1757012090127,0.14216157,203.27,203.24,0.1]
[1757012090336,38.4,203.26,203.24,0.1]
[1757012090513,38.4,203.26,203.25,3.5998522]
[1757012090715,0.14216157,203.28,203.25,3.5998522]
[1757012090915,0.14216157,203.28,203.25,2.9298522]
[1757012091217,0.14216157,203.28,203.24,5.02028997]
[1757012091218,38.4,203.27,203.24,5.02028997]
[1757012091424,38.4,203.27,203.24,7.95014217]
[1757012091625,0.14216157,203.28,203.25,0.67]
[1757012091923,0.14216157,203.27,203.26,0.67]
[1757012092114,38.54216157,203.27,203.26,0.79]
[1757012093026,38.52216157,203.27,203.26,0.79]
[1757012095644,38.52216157,203.27,203.26,0.12]
[1757012096332,41.45201377,203.27,203.26,0.12]
[1757012097133,46.37157888,203.27,203.26,0.12]
[1757012098025,41.45201377,203.27,203.26,0.12]
[1757012098229,0.14216157,203.27,203.26,0.12]
[1757012098437,38.52216157,203.27,203.26,0.79]
[1757012098734,38.52216157,203.27,203.26,0.12]
[1757012099328,0.14216157,203.27,203.26,0.12]
[1757012099718,38.52216157,203.27,203.26,0.12]
[1757012100740,42.07201377,203.27,203.26,0.12]
[1757012100916,46.99157888,203.27,203.26,0.12]
[1757012101346,72.99157888,203.27,203.26,0.12]
[1757012102026,70.06172668,203.27,203.26,0.12]
[1757012102220,72.99157888,203.27,203.26,0.12]
[1757012102421,34.61157888,203.27,203.26,0.12]
[1757012102617,31.06172668,203.27,203.26,0.12]
[1757012102862,0.62,203.32,203.26,0.79]
[1757012103026,41.3098522,203.31,203.26,0.79]
[1757012103353,0.14216157,203.3,203.27,0.67]
[1757012103541,67.3098522,203.31,203.27,0.67]
[1757012103840,38.38,203.3,203.27,0.67]
[1757012104047,0.14216157,203.29,203.27,0.67]
[1757012104256,26.0,203.31,203.26,7.96959415]
[1757012104425,38.38,203.31,203.3,2.9298522]
[1757012104621,38.38,203.31,203.3,0.67]
[1757012105132,38.52216157,203.31,203.3,0.67]
[1757012105330,7.84726226,203.36,203.3,3.5998522]
[1757012105519,26.0,203.33,203.3,3.5998522]
[1757012105736,38.52216157,203.32,203.31,0.67]
[1757012106622,0.14216157,203.32,203.31,8.51844941]
[1757012106824,2.9298522,203.38,203.31,8.51844941]
[1757012107037,38.38,203.37,203.33,2.9298522]
[1757012107360,26.0,203.38,203.34,0.67]
[1757012107527,0.03,203.4,203.34,0.67]
[1757012107528,38.38,203.37,203.34,3.5998522]
[1757012107846,0.14216157,203.36,203.34,0.67]
[1757012108044,0.14216157,203.36,203.33,2.9298522]
[1757012108254,41.3098522,203.37,203.33,0.67]
[1757012108448,3.07201377,203.34,203.3,0.67]
[1757012108643,0.14216157,203.32,203.3,0.67]
[1757012108827,0.14216157,203.32,203.31,0.67]
[1757012110431,0.14216157,203.32,203.29,3.5998522]
[1757012110758,0.14216157,203.32,203.3,0.67]
[1757012111354,0.14216157,203.32,203.31,0.67]
[1757012111761,38.38,203.32,203.31,3.5998522]
[1757012111941,38.38,203.32,203.31,0.67]
[1757012112132,38.38,203.32,203.31,3.5998522]
[1757012112450,38.38,203.32,203.31,0.67]
[1757012112863,38.38,203.32,203.31,3.5998522]
[1757012113233,38.38,203.32,203.31,8.51840116]